[Event "Austrian Youth-ch U18 Boys 2024"]
[Site "Leibnitz"]
[Date "2024.03.27"]
[Round "6.4"]
[White "Kienboeck, Benjamin"]
[Black "Wendl, Philipp"]
[Result "1-0"]
[ECO "C11"]
[WhiteElo "2219"]
[BlackElo "2237"]
[Annotator "RC"]
[PlyCount "103"]
[EventDate "2024.03.23"]
[EventType "swiss"]
[EventCountry "AUT"]
[SourceTitle "playchess.com"]
[Source "ChessBase"]
[SourceQuality "1"]
[TimeControl "5400+30"]

1. e4 {[%emt 0:00:03]} e6 {[%emt 0:00:21]} 2. d4 {[%emt 0:00:11]} d5 {[%emt 0:00:05]} 3. Nc3 {[%emt 0:00:11]} Nf6 {[%emt 0:00:08]} 4. e5 {[%emt 0:00:11]} Nfd7 {[%emt 0:00:08]} 5. f4 {[%emt 0:00:09]} c5 {[%emt 0:00:06]} 6. Nf3 {[%emt 0:00:10]} Nc6 {[%emt 0:00:07]} 7. Be3 {[%emt 0:00:21]} a6 {[%emt 0:00:24]} 8. a3 {[%emt 0:01:05]} b5 {[%emt 0:01:01]} 9. Bd3 {[%emt 0:01:35]} Qb6 {[%emt 0:01:19]} 10. Bf2 {[%emt 0:00:24]} cxd4 {[%emt 0:06:18]} 11. Ne2 {[%emt 0:00:48]} Qa5+ {[%emt 0:04:55]} 12. b4 {[%emt 0:05:42]} Qc7 {[%emt 0:00:38]} 13. O-O {[%emt 0:02:26]} Be7 {[%emt 0:00:48]} 14. Nexd4 {[%emt 0:01:44]} Nxd4 {[%emt 0:03:30]} 15. Nxd4 {[%emt 0:00:17]} g6 {[%emt 0:03:42]} 16. Kh1 {[%emt 0:03:49]} Bb7 {[%emt 0:05:36]} 17. Qe2 {[%emt 0:05:40]} Nb6 {[%emt 0:04:53]} 18. g4 {[%emt 0:17:24]} Nc4 {[%emt 0:03:08]} 19. Bg3 {[%emt 0:09:05]} Qb6 {[%emt 0:03:38]} 20. c3 {[%emt 0:02:07]} a5 {[%emt 0:02:01]} 21. Bf2 {[%emt 0:01:38]} axb4 {[%emt 0:10:15]} 22. axb4 {[%emt 0:00:32]} Kd7 {[%emt 0:06:44]} 23. Kg1 {[%emt 0:06:35]} h5 {[%emt 0:04:22]} 24. Rxa8 {[%emt 0:03:50]} Bxa8 {[%emt 0:02:41]} 25. Ra1 {[%emt 0:02:12]} Bb7 {[%emt 0:08:43]} 26. f5 {[%emt 0:12:46]} gxf5 {[%emt 0:03:05]} 27. gxf5 {[%emt 0:00:40]} Rg8+ {[%emt 0:00:13]} 28. Kf1 {[%emt 0:00:31]} Qc7 {[%emt 0:05:29]} 29. Ra7 {[%emt 0:01:44]} Kc8 {[%emt 0:02:14]} 30. fxe6 {[%emt 0:04:37]} fxe6 {[%emt 0:01:51]} 31. Nxb5 {[%emt 0:00:55]} Qd7 {[%emt 0:01:14]} 32. Nd4 {[%emt 0:03:54]} Kb8 {[%emt 0:01:16]} 33. Ra1 {[%emt 0:00:58]} Bd8 {[%emt 0:01:55]} 34. Qxh5 {[%emt 0:05:17]} Rg5 {[%emt 0:01:06]} 35. Qh7 {[%emt 0:00:48]} Qxh7 {[%emt 0:01:56]} 36. Bxh7 {[%emt 0:00:06]} Rh5 {[%emt 0:01:13]} 37. Nxe6 {[%emt 0:03:50]} Be7 {[%emt 0:02:22]} 38. Bd3 {[%emt 0:02:45]} Rxh2 {[%emt 0:00:29]} 39. Bxc4 {[%emt 0:01:15]} dxc4 {[%emt 0:00:01]} 40. Re1 {[%emt 0:01:32]} Bc8 {[%emt 0:02:02]} 41. Nf4 {[%emt 0:00:36]} Rh1+ {[%emt 0:00:28]} 42. Ke2 {[%emt 0:00:18]} Bg4+ {[%emt 0:00:26]} 43. Ke3 {[%emt 0:00:17]} Rh2 {[%emt 0:01:06]} 44. Rg1 {[%emt 0:00:36]} Bf5 {[%emt 0:00:21]} 45. Rg7 {[%emt 0:00:36]} Bd8 {[%emt 0:01:01]} 46. Rg8 {[%emt 0:00:20]} Kc8 {[%emt 0:00:02]} 47. Bg3 {[%emt 0:00:23]} Rc2 {[%emt 0:00:37]} 48. Kd4 {[%emt 0:00:45]} Kb7 {[%emt 0:00:49]} 49. Kxc4 {[%emt 0:00:25]} Bc7 {[%emt 0:00:04]} 50. Rg7 {[%emt 0:00:21]} Kc8 {[%emt 0:01:22]} 51. Nd5 {[%emt 0:00:24]} Be6 {[%emt 0:00:04]} 52. Rxc7+ {[%emt 0:00:12]} 1-0

[Event "Austrian Youth-ch U18 Boys 2024"]
[Site "Leibnitz"]
[Date "2024.03.27"]
[Round "6.5"]
[White "Miazhynski, Michael"]
[Black "Hofstadler, Mario"]
[Result "1-0"]
[ECO "B10"]
[WhiteElo "2178"]
[BlackElo "2104"]
[Annotator "RC"]
[PlyCount "65"]
[EventDate "2024.03.23"]
[EventType "swiss"]
[EventCountry "AUT"]
[SourceTitle "playchess.com"]
[Source "ChessBase"]
[SourceQuality "1"]
[TimeControl "5400+30"]

1. e4 {[%emt 0:00:04]} c6 {[%emt 0:00:13]} 2. c4 {[%emt 0:00:03]} d5 {[%emt 0:00:08]} 3. cxd5 {[%emt 0:00:06]} cxd5 {[%emt 0:00:18]} 4. exd5 {[%emt 0:00:01]} Nf6 {[%emt 0:00:17]} 5. Qa4+ {[%emt 0:00:05]} Nbd7 {[%emt 0:03:33]} 6. Nc3 {[%emt 0:00:19]} g6 {[%emt 0:07:14]} 7. Bc4 {[%emt 0:00:53]} Bg7 {[%emt 0:00:42]} 8. Nf3 {[%emt 0:00:07]} O-O {[%emt 0:03:44]} 9. d3 {[%emt 0:00:04]} a6 {[%emt 0:01:14]} 10. Qa3 {[%emt 0:01:23]} Nb6 {[%emt 0:26:37]} 11. Qb3 {[%emt 0:03:08]} Nbd7 {[%emt 0:03:48]} 12. a4 {[%emt 0:07:27]} Nc5 {[%emt 0:00:28]} 13. Qa3 {[%emt 0:06:35]} Qd6 {[%emt 0:02:21]} 14. Be3 {[%emt 0:04:42]} b6 {[%emt 0:00:16]} 15. a5 {[%emt 0:09:52]} Bf5 {[%emt 0:03:02]} 16. axb6 {[%emt 0:03:02]} Nxd3+ {[%emt 0:00:18]} 17. Bxd3 {[%emt 0:03:15]} Bxd3 {[%emt 0:00:07]} 18. Qxd6 {[%emt 0:06:20]} exd6 {[%emt 0:00:07]} 19. Kd2 {[%emt 0:03:20]} Bc4 {[%emt 0:02:37]} 20. Ra5 {[%emt 0:09:05]} Rab8 {[%emt 0:04:30]} 21. b3 {[%emt 0:18:24]} Bxb3 {[%emt 0:00:31]} 22. Rb1 {[%emt 0:01:17]} Bc4 {[%emt 0:00:24]} 23. b7 {[%emt 0:00:27]} Nd7 {[%emt 0:16:51]} 24. Ba7 {[%emt 0:01:49]} Rbe8 {[%emt 0:03:35]} 25. Nd4 {[%emt 0:01:37]} Bxd4 {[%emt 0:14:20]} 26. Bxd4 {[%emt 0:00:05]} f5 {[%emt 0:00:32]} 27. Ra4 {[%emt 0:01:09]} Bb5 {[%emt 0:00:17]} 28. Nxb5 {[%emt 0:00:02]} axb5 {[%emt 0:00:06]} 29. Rxb5 {[%emt 0:00:03]} Kf7 {[%emt 0:00:29]} 30. Ba7 {[%emt 0:02:35]} Ke7 {[%emt 0:00:32]} 31. Rc4 {[%emt 0:00:10]} Rd8 {[%emt 0:01:38]} 32. Rc7 {[%emt 0:00:17]} Kf6 {[%emt 0:00:07]} 33. Rxd7 {[%emt 0:00:36]} 1-0

[Event "Austrian Youth-ch U18 Boys 2024"]
[Site "Leibnitz"]
[Date "2024.03.27"]
[Round "6.6"]
[White "Kuti, Oliver"]
[Black "Hake, Nils"]
[Result "1-0"]
[ECO "B33"]
[WhiteElo "2006"]
[BlackElo "1992"]
[Annotator "NA RC"]
[PlyCount "67"]
[EventDate "2024.03.23"]
[EventType "swiss"]
[EventCountry "AUT"]
[SourceTitle "playchess.com"]
[Source "ChessBase"]
[SourceQuality "1"]
[TimeControl "5400+30"]

1. e4 {[%emt 0:00:03]} c5 {[%emt 0:00:05]} 2. Nf3 {[%emt 0:00:05]} Nc6 {[%emt 0:00:04]} 3. d4 {[%emt 0:02:43]} cxd4 {[%emt 0:00:05]} 4. Nxd4 {[%emt 0:00:02]} e5 {[%emt 0:00:12]} 5. Nb5 {[%emt 0:00:05]} Nf6 {[%emt 0:00:12]} 6. N1c3 {[%emt 0:03:09]} d6 {[%emt 0:00:26]} 7. Bg5 {[%emt 0:00:08]} a6 {[%emt 0:00:09]} 8. Na3 {[%emt 0:00:15]} b5 {[%emt 0:00:27]} 9. Bxf6 {[%emt 0:00:37]} gxf6 {[%emt 0:00:05]} 10. Nd5 {[%emt 0:00:13]} f5 {[%emt 0:00:27]} 11. Bd3 {[%emt 0:01:05]} Be6 {[%emt 0:00:16]} 12. c3 {[%emt 0:00:54]} Bg7 {[%emt 0:00:21]} 13. Nxb5 {[%emt 0:06:17]} axb5 {[%emt 0:04:32]} 14. Bxb5 {[%emt 0:00:02]} Bd7 {[%emt 0:03:07]} 15. exf5 $1 {[%emt 0:00:14]} O-O {[%emt 0:12:47]} 16. O-O {[%emt 0:00:19]} Ra5 {[%emt 0:03:35]} (16... Ra7 $11 {keeps the balance.}) 17. a4 {[%emt 0:02:22]} Nb8 $2 {[%emt 0:04:40] [#]} ({Avoid the trap} 17... Ne7 $2 18. f6 Nxd5 19. fxg7 Kxg7 20. Qxd5 Bxb5 21. axb5 $18) (17... e4 $16 {was worth a try.}) 18. f6 $1 {[%emt 0:06:20]} Bxf6 {[%emt 0:10:59]} 19. Nxf6+ {[%emt 0:00:09]} Qxf6 {[%emt 0:00:14]} 20. Bxd7 {[%emt 0:00:04]} Kh8 {[%emt 0:04:57]} 21. Bb5 {[%emt 0:02:47]} Rg8 {[%emt 0:01:29]} 22. b4 {[%emt 0:02:10]} Ra7 {[%emt 0:00:20]} 23. a5 {[%emt 0:01:11]} Qd8 $18 {[%emt 0:05:51]} 24. Qd5 {[%emt 0:03:09]} Qc7 {[%emt 0:01:21]} 25. c4 {[%emt 0:01:17]} Na6 {[%emt 0:00:25]} 26. Bxa6 {[%emt 0:00:35]} Rxa6 {[%emt 0:00:04]} 27. Rfc1 {[%emt 0:12:33]} Rg4 {[%emt 0:01:38]} 28. Qb5 {[%emt 0:07:19]} Ra8 {[%emt 0:03:54]} 29. a6 {[%emt 0:02:42]} Qa7 {[%emt 0:03:41]} 30. Qc6 {[%emt 0:08:00]} Rg6 {[%emt 0:02:55]} 31. Qb7 {[%emt 0:03:07]} Rgg8 {[%emt 0:03:39]} 32. c5 {[%emt 0:04:18]} dxc5 {[%emt 0:01:45]} 33. Qxa7 {[%emt 0:00:08]} Rxa7 {[%emt 0:00:10]} 34. b5 {[%emt 0:01:25]} 1-0

[Event "Austrian Youth-ch U18 Boys 2024"]
[Site "Leibnitz"]
[Date "2024.03.27"]
[Round "6.7"]
[White "Hengl, Philip"]
[Black "Ernst, Robert"]
[Result "1/2-1/2"]
[ECO "B48"]
[WhiteElo "2145"]
[BlackElo "2332"]
[Annotator "RC"]
[PlyCount "82"]
[EventDate "2024.03.23"]
[EventType "swiss"]
[EventCountry "AUT"]
[SourceTitle "playchess.com"]
[Source "ChessBase"]
[SourceQuality "1"]
[TimeControl "5400+30"]

1. e4 {[%emt 0:00:01]} c5 {[%emt 0:00:08]} 2. Nf3 {[%emt 0:00:06]} e6 {[%emt 0:00:04]} 3. d4 {[%emt 0:00:15]} cxd4 {[%emt 0:00:10]} 4. Nxd4 {[%emt 0:00:07]} Nc6 {[%emt 0:00:06]} 5. Nc3 {[%emt 0:00:18]} Qc7 {[%emt 0:00:07]} 6. Be3 {[%emt 0:00:14]} a6 {[%emt 0:00:06]} 7. a3 {[%emt 0:00:07]} b5 {[%emt 0:00:07]} 8. Nxc6 {[%emt 0:00:14]} dxc6 {[%emt 0:00:08]} 9. Qg4 {[%emt 0:00:40]} e5 {[%emt 0:00:07]} 10. Qg3 {[%emt 0:00:38]} h5 {[%emt 0:00:02]} 11. Bd4 {[%emt 0:01:04]} f6 {[%emt 0:00:07]} 12. Be3 {[%emt 0:00:05]} g5 {[%emt 0:22:11]} 13. f3 {[%emt 0:12:22]} h4 {[%emt 0:00:54]} 14. Qf2 {[%emt 0:00:09]} Be6 {[%emt 0:00:37]} 15. Be2 {[%emt 0:06:48]} Ne7 {[%emt 0:02:12]} 16. a4 {[%emt 0:03:32]} Qb7 {[%emt 0:06:30]} 17. O-O {[%emt 0:09:04]} Ng6 {[%emt 0:02:53]} 18. Rfd1 {[%emt 0:01:42]} Be7 {[%emt 0:01:55]} 19. Rd2 {[%emt 0:12:52]} Kf7 {[%emt 0:01:23]} 20. Bf1 {[%emt 0:02:22]} Rhd8 {[%emt 0:11:32]} 21. Rxd8 {[%emt 0:00:18]} Bxd8 {[%emt 0:00:03]} 22. Bc5 {[%emt 0:06:39]} Nf8 {[%emt 0:01:33]} 23. Rd1 {[%emt 0:03:48]} Nd7 {[%emt 0:01:07]} 24. Be3 {[%emt 0:00:06]} Be7 {[%emt 0:04:39]} 25. b3 {[%emt 0:03:51]} Bb4 {[%emt 0:01:14]} 26. Ne2 {[%emt 0:01:09]} bxa4 {[%emt 0:07:48]} 27. bxa4 {[%emt 0:00:21]} Be7 {[%emt 0:00:52]} 28. Nc1 {[%emt 0:01:59]} Qb4 {[%emt 0:03:20]} 29. Nb3 {[%emt 0:00:59]} c5 {[%emt 0:01:21]} 30. Qd2 {[%emt 0:05:24]} Qxa4 {[%emt 0:01:20]} 31. Ra1 {[%emt 0:00:34]} Qc6 {[%emt 0:00:21]} 32. Qc3 {[%emt 0:01:35]} Qb6 {[%emt 0:09:30]} 33. Na5 {[%emt 0:03:17]} Qb4 {[%emt 0:01:11]} 34. Qxb4 {[%emt 0:00:46]} cxb4 {[%emt 0:00:01]} 35. Nc6 {[%emt 0:01:08]} Bc5 {[%emt 0:00:02]} 36. Bxc5 {[%emt 0:00:17]} Nxc5 {[%emt 0:00:05]} 37. Ra5 {[%emt 0:01:07]} b3 {[%emt 0:01:57]} 38. cxb3 {[%emt 0:00:08]} Nxb3 {[%emt 0:00:07]} 39. Rxa6 {[%emt 0:00:35]} Rc8 {[%emt 0:03:59]} 40. Ra7+ {[%emt 0:00:29]} Kf8 {[%emt 0:00:02]} 41. Ra6 {[%emt 0:02:26]} Nc5 {[%emt 0:07:33]} 1/2-1/2

[Event "Austrian Youth-ch U18 Boys 2024"]
[Site "Leibnitz"]
[Date "2024.03.27"]
[Round "6.8"]
[White "Wagner, Leopold Franziskus"]
[Black "Sohn, Benedikt"]
[Result "1-0"]
[ECO "D11"]
[WhiteElo "2228"]
[BlackElo "2061"]
[Annotator "RC"]
[PlyCount "43"]
[EventDate "2024.03.23"]
[EventType "swiss"]
[EventCountry "AUT"]
[SourceTitle "playchess.com"]
[Source "ChessBase"]
[SourceQuality "1"]
[TimeControl "5400+30"]

1. d4 {[%emt 0:00:03]} Nf6 {[%emt 0:00:05]} 2. c4 {[%emt 0:00:10]} c6 {[%emt 0:00:06]} 3. Nf3 {[%emt 0:00:55]} d5 {[%emt 0:00:04]} 4. e3 {[%emt 0:00:20]} Bg4 {[%emt 0:00:56]} 5. Nc3 {[%emt 0:01:32]} e6 {[%emt 0:00:06]} 6. h3 {[%emt 0:01:08]} Bh5 {[%emt 0:01:50]} 7. g4 {[%emt 0:03:28]} Bg6 {[%emt 0:00:09]} 8. Ne5 {[%emt 0:00:09]} dxc4 {[%emt 0:02:45]} 9. Bxc4 {[%emt 0:03:13]} Be4 {[%emt 0:00:52]} 10. Rg1 {[%emt 0:06:28]} Bd5 {[%emt 0:02:50]} 11. Bd3 {[%emt 0:19:46]} c5 {[%emt 0:00:56]} 12. Nxd5 {[%emt 0:05:34]} Qxd5 {[%emt 0:01:56]} 13. Bc4 {[%emt 0:04:08]} Qd6 {[%emt 0:03:35]} 14. Qf3 {[%emt 0:11:42]} Nc6 {[%emt 0:06:08]} 15. g5 {[%emt 0:01:35]} cxd4 {[%emt 0:00:29]} 16. Nxc6 {[%emt 0:00:28]} bxc6 {[%emt 0:00:12]} 17. gxf6 {[%emt 0:00:21]} Qb4+ {[%emt 0:00:05]} 18. Bd2 {[%emt 0:00:05]} Qxc4 {[%emt 0:00:11]} 19. fxg7 {[%emt 0:00:25]} Bxg7 {[%emt 0:00:06]} 20. Rxg7 {[%emt 0:00:05]} dxe3 {[%emt 0:00:04]} 21. Qxf7+ {[%emt 0:00:05]} Kd8 {[%emt 0:00:08]} 22. Qd7# {[%emt 0:39:50]} 1-0

[Event "Austrian Youth-ch U18 Boys 2024"]
[Site "Leibnitz"]
[Date "2024.03.28"]
[Round "7.1"]
[White "Gschiel, Alexander"]
[Black "Borrmann, Laurenz"]
[Result "0-1"]
[ECO "E01"]
[WhiteElo "2336"]
[BlackElo "2311"]
[Annotator "RC"]
[PlyCount "86"]
[EventDate "2024.03.23"]
[EventType "swiss"]
[EventCountry "AUT"]
[SourceTitle "playchess.com"]
[Source "ChessBase"]
[SourceQuality "1"]
[TimeControl "5400+30"]

1. d4 {[%emt 0:00:03]} Nf6 {[%emt 0:00:09]} 2. Nf3 {[%emt 0:00:06]} d5 {[%emt 0:00:28]} 3. c4 {[%emt 0:00:07]} e6 {[%emt 0:00:08]} 4. g3 {[%emt 0:00:11]} Bb4+ {[%emt 0:00:13]} 5. Nbd2 {[%emt 0:02:43]} O-O {[%emt 0:00:25]} 6. a3 {[%emt 0:01:57]} Bxd2+ {[%emt 0:05:25]} 7. Bxd2 {[%emt 0:03:33]} dxc4 {[%emt 0:00:07]} 8. Bg2 {[%emt 0:01:18]} a6 {[%emt 0:13:54]} 9. Bb4 {[%emt 0:10:29]} Re8 {[%emt 0:00:23]} 10. Ne5 {[%emt 0:00:04]} Nd5 {[%emt 0:08:31]} 11. Nxc4 {[%emt 0:02:10]} Nxb4 {[%emt 0:00:41]} 12. axb4 {[%emt 0:00:08]} Qe7 {[%emt 0:01:55]} 13. Qd2 {[%emt 0:03:09]} Nd7 {[%emt 0:09:04]} 14. Ra5 {[%emt 0:07:40]} Nf6 {[%emt 0:02:54]} 15. O-O {[%emt 0:05:13]} Rb8 {[%emt 0:04:53]} 16. Ne5 {[%emt 0:03:46]} Bd7 {[%emt 0:03:33]} 17. Nxd7 {[%emt 0:09:57]} Qxd7 {[%emt 0:00:06]} 18. e4 {[%emt 0:04:44]} Red8 {[%emt 0:05:03]} 19. Rd1 {[%emt 0:00:29]} c6 {[%emt 0:00:28]} 20. Qc3 {[%emt 0:02:31]} Qe7 {[%emt 0:04:04]} 21. Bf3 {[%emt 0:01:23]} Rd7 {[%emt 0:01:15]} 22. Kg2 {[%emt 0:03:18]} Rbd8 {[%emt 0:01:29]} 23. h4 {[%emt 0:01:06]} Ne8 {[%emt 0:01:33]} 24. Rg5 {[%emt 0:13:48]} h6 {[%emt 0:01:31]} 25. Re5 {[%emt 0:02:42]} Nc7 {[%emt 0:02:18]} 26. Be2 {[%emt 0:03:45]} Rd6 {[%emt 0:01:14]} 27. Kf3 {[%emt 0:02:38]} Qd7 {[%emt 0:01:45]} 28. Ke3 {[%emt 0:00:03]} f6 {[%emt 0:01:54]} 29. Ra5 {[%emt 0:00:42]} e5 {[%emt 0:00:46]} 30. Bc4+ {[%emt 0:01:38]} Kh8 {[%emt 0:00:27]} 31. d5 {[%emt 0:00:06]} cxd5 {[%emt 0:03:10]} 32. Bxd5 {[%emt 0:01:07]} Nb5 {[%emt 0:00:20]} 33. Qd2 {[%emt 0:03:30]} f5 {[%emt 0:00:29]} 34. f3 {[%emt 0:03:24]} fxe4 {[%emt 0:00:06]} 35. fxe4 {[%emt 0:00:08]} Rf8 {[%emt 0:01:01]} 36. Qg2 {[%emt 0:00:47]} Rdf6 {[%emt 0:01:51]} 37. Raa1 {[%emt 0:00:32]} Qd6 {[%emt 0:00:38]} 38. Rac1 {[%emt 0:03:52]} Qxb4 {[%emt 0:01:01]} 39. g4 {[%emt 0:01:29]} Nd4 {[%emt 0:01:53]} 40. Rf1 {[%emt 0:00:04]} Nc2+ {[%emt 0:01:37]} 41. Qxc2 {[%emt 0:00:14]} Qd4+ {[%emt 0:00:23]} 42. Ke2 {[%emt 0:00:49]} Rf2+ {[%emt 0:00:07]} 43. Rxf2 {[%emt 0:00:07]} Rxf2+ {[%emt 0:00:06]} 0-1

[Event "Austrian Youth-ch U18 Boys 2024"]
[Site "Leibnitz"]
[Date "2024.03.28"]
[Round "7.2"]
[White "Balint, Peter"]
[Black "Miazhynski, Michael"]
[Result "1/2-1/2"]
[ECO "C41"]
[WhiteElo "2345"]
[BlackElo "2178"]
[Annotator "RC"]
[PlyCount "104"]
[EventDate "2024.03.23"]
[EventType "swiss"]
[EventCountry "AUT"]
[SourceTitle "playchess.com"]
[Source "ChessBase"]
[SourceQuality "1"]
[TimeControl "5400+30"]

1. e4 {[%emt 0:00:01]} d6 {[%emt 0:00:13]} 2. d4 {[%emt 0:00:05]} Nf6 {[%emt 0:00:06]} 3. Nc3 {[%emt 0:00:03]} e5 {[%emt 0:00:06]} 4. Nf3 {[%emt 0:00:03]} Nbd7 {[%emt 0:00:06]} 5. Bc4 {[%emt 0:00:04]} Be7 {[%emt 0:00:06]} 6. O-O {[%emt 0:00:05]} O-O {[%emt 0:00:07]} 7. Re1 {[%emt 0:00:02]} c6 {[%emt 0:00:06]} 8. a4 {[%emt 0:00:03]} a5 {[%emt 0:00:29]} 9. b3 {[%emt 0:00:55]} Nb6 {[%emt 0:01:04]} 10. Bf1 {[%emt 0:06:45]} exd4 {[%emt 0:00:31]} 11. Nxd4 {[%emt 0:01:21]} d5 {[%emt 0:00:13]} 12. e5 {[%emt 0:05:24]} Ne8 {[%emt 0:00:08]} 13. Nce2 {[%emt 0:20:43]} g6 {[%emt 0:04:35]} 14. Nf4 {[%emt 0:07:01]} Ng7 {[%emt 0:00:15]} 15. Bb2 {[%emt 0:06:08]} Bg5 {[%emt 0:07:49]} 16. Nd3 {[%emt 0:02:00]} Re8 {[%emt 0:01:39]} 17. f4 {[%emt 0:05:37]} Be7 {[%emt 0:17:27]} 18. Qf3 {[%emt 0:01:59]} Bd7 {[%emt 0:08:00]} 19. Qf2 {[%emt 0:07:12]} c5 {[%emt 0:10:06]} 20. Nb5 {[%emt 0:08:24]} Bxb5 {[%emt 0:06:55]} 21. axb5 {[%emt 0:00:08]} Qc7 {[%emt 0:00:43]} 22. Qf3 {[%emt 0:03:49]} h5 {[%emt 0:04:09]} 23. Nf2 {[%emt 0:01:16]} a4 {[%emt 0:08:21]} 24. c4 {[%emt 0:03:22]} Qd7 {[%emt 0:14:06]} 25. cxd5 {[%emt 0:07:21]} Qxd5 {[%emt 0:00:07]} 26. Qxd5 {[%emt 0:00:17]} Nxd5 {[%emt 0:00:02]} 27. Rxa4 {[%emt 0:00:12]} Rxa4 {[%emt 0:09:02]} 28. bxa4 {[%emt 0:00:04]} Nxf4 {[%emt 0:03:31]} 29. a5 {[%emt 0:00:45]} Nge6 {[%emt 0:00:54]} 30. a6 {[%emt 0:01:13]} bxa6 {[%emt 0:00:03]} 31. bxa6 {[%emt 0:00:06]} Nc7 {[%emt 0:02:48]} 32. Ra1 {[%emt 0:01:36]} Nfd5 {[%emt 0:00:11]} 33. Ne4 {[%emt 0:01:11]} Ra8 {[%emt 0:00:53]} 34. Nd6 {[%emt 0:05:46]} Nb4 {[%emt 0:00:34]} 35. a7 {[%emt 0:06:59]} Nc6 {[%emt 0:00:21]} 36. Nb5 {[%emt 0:00:00]} Bd8 {[%emt 0:01:18]} 37. Nxc7 {[%emt 0:00:00]} Bxc7 {[%emt 0:00:00]} 38. Bb5 {[%emt 0:00:00]} Na5 {[%emt 0:00:53]} 39. Kf1 {[%emt 0:00:00]} Rxa7 {[%emt 0:00:08]} 40. Bc3 {[%emt 0:00:00]} Bb6 {[%emt 0:00:25]} 41. Ke2 {[%emt 0:00:00]} Nb3 {[%emt 0:00:14]} 42. Rxa7 {[%emt 0:00:00]} Bxa7 {[%emt 0:00:01]} 43. Bc4 {[%emt 0:00:00]} Nd4+ {[%emt 0:00:10]} 44. Bxd4 {[%emt 0:00:00]} cxd4 {[%emt 0:00:03]} 45. e6 {[%emt 0:00:00]} fxe6 {[%emt 0:00:05]} 46. Bxe6+ {[%emt 0:00:00]} Kg7 {[%emt 0:00:02]} 47. h3 {[%emt 0:00:00]} Kf6 {[%emt 0:00:03]} 48. Bd5 {[%emt 0:00:00]} Ke5 {[%emt 0:00:02]} 49. Bb7 {[%emt 0:00:00]} Kf4 {[%emt 0:00:06]} 50. Kd3 {[%emt 0:00:00]} g5 {[%emt 0:00:07]} 51. Bf3 {[%emt 0:00:00]} g4 {[%emt 0:00:09]} 52. hxg4 {[%emt 0:00:00]} hxg4 {[%emt 0:00:05]} 1/2-1/2

[Event "Austrian Youth-ch U18 Boys 2024"]
[Site "Leibnitz"]
[Date "2024.03.28"]
[Round "7.3"]
[White "Kuti, Oliver"]
[Black "Zaytsev, Alexander"]
[Result "1-0"]
[ECO "B40"]
[WhiteElo "2006"]
[BlackElo "2018"]
[Annotator "RC"]
[PlyCount "63"]
[EventDate "2024.03.23"]
[EventType "swiss"]
[EventCountry "AUT"]
[SourceTitle "playchess.com"]
[Source "ChessBase"]
[SourceQuality "1"]
[TimeControl "5400+30"]

1. e4 {[%emt 0:00:03]} c5 {[%emt 0:00:01]} 2. Nf3 {[%emt 0:00:08]} e6 {[%emt 0:00:03]} 3. c3 {[%emt 0:00:17]} Qa5 {[%emt 0:00:10]} 4. Bc4 {[%emt 0:14:06]} d6 {[%emt 0:03:58]} 5. O-O {[%emt 0:02:22]} Nf6 {[%emt 0:03:10]} 6. Re1 {[%emt 0:10:32]} b5 {[%emt 0:09:24]} 7. Bb3 {[%emt 0:00:29]} c4 {[%emt 0:08:21]} 8. Bc2 {[%emt 0:00:09]} Nc6 {[%emt 0:05:18]} 9. d4 {[%emt 0:06:21]} cxd3 {[%emt 0:03:23]} 10. Bxd3 {[%emt 0:02:07]} Bb7 {[%emt 0:07:57]} 11. b4 {[%emt 0:11:28]} Qb6 {[%emt 0:09:57]} 12. Be3 {[%emt 0:00:10]} Qc7 {[%emt 0:00:49]} 13. Bxb5 {[%emt 0:07:09]} Nxe4 {[%emt 0:02:23]} 14. Bxa7 {[%emt 0:03:06]} Rxa7 {[%emt 0:11:09]} 15. Rxe4 {[%emt 0:00:25]} Be7 {[%emt 0:00:50]} 16. Nbd2 {[%emt 0:08:59]} O-O {[%emt 0:01:16]} 17. Qb3 {[%emt 0:03:48]} Bf6 {[%emt 0:04:51]} 18. Ree1 {[%emt 0:06:07]} d5 {[%emt 0:07:02]} 19. a4 {[%emt 0:01:54]} Rd8 {[%emt 0:06:56]} 20. a5 {[%emt 0:07:35]} Ne5 {[%emt 0:10:07]} 21. Rec1 {[%emt 0:03:02]} Nxf3+ {[%emt 0:01:31]} 22. Nxf3 {[%emt 0:00:10]} Qf4 {[%emt 0:00:48]} 23. Be2 {[%emt 0:05:58]} e5 {[%emt 0:01:59]} 24. a6 {[%emt 0:01:37]} Bc8 {[%emt 0:00:34]} 25. b5 {[%emt 0:00:28]} d4 {[%emt 0:00:31]} 26. b6 {[%emt 0:00:52]} Rxa6 {[%emt 0:00:29]} 27. Bxa6 {[%emt 0:00:12]} Bxa6 {[%emt 0:00:05]} 28. cxd4 {[%emt 0:01:25]} e4 {[%emt 0:00:26]} 29. g3 {[%emt 0:00:27]} Qf5 {[%emt 0:00:51]} 30. Rxa6 {[%emt 0:00:26]} exf3 {[%emt 0:00:39]} 31. b7 {[%emt 0:00:22]} Rb8 {[%emt 0:00:31]} 32. Ra8 {[%emt 0:00:21]} 1-0

[Event "Austrian Youth-ch U18 Boys 2024"]
[Site "Leibnitz"]
[Date "2024.03.28"]
[Round "7.4"]
[White "Ernst, Robert"]
[Black "Kienboeck, Benjamin"]
[Result "1/2-1/2"]
[ECO "C28"]
[WhiteElo "2332"]
[BlackElo "2219"]
[Annotator "RC"]
[PlyCount "47"]
[EventDate "2024.03.23"]
[EventType "swiss"]
[EventCountry "AUT"]
[SourceTitle "playchess.com"]
[Source "ChessBase"]
[SourceQuality "1"]
[TimeControl "5400+30"]

1. e4 {[%emt 0:00:03]} e5 {[%emt 0:00:07]} 2. Nc3 {[%emt 0:00:06]} Nc6 {[%emt 0:02:34]} 3. Bc4 {[%emt 0:00:07]} Nf6 {[%emt 0:00:29]} 4. d3 {[%emt 0:00:08]} Be7 {[%emt 0:01:42]} 5. f4 {[%emt 0:00:45]} O-O {[%emt 0:02:54]} 6. Nf3 {[%emt 0:01:47]} d6 {[%emt 0:02:31]} 7. a4 {[%emt 0:08:50]} Be6 {[%emt 0:08:45]} 8. fxe5 {[%emt 0:11:04]} dxe5 {[%emt 0:01:47]} 9. Bg5 {[%emt 0:16:44]} Bxc4 {[%emt 0:14:42]} 10. dxc4 {[%emt 0:01:09]} Bb4 {[%emt 0:01:01]} 11. Qd3 {[%emt 0:03:29]} Bxc3+ {[%emt 0:11:18]} 12. bxc3 {[%emt 0:00:02]} Qe7 {[%emt 0:02:29]} 13. O-O {[%emt 0:00:55]} Rad8 {[%emt 0:02:01]} 14. Qe2 {[%emt 0:09:46]} h6 {[%emt 0:03:02]} 15. Bh4 {[%emt 0:01:51]} b6 {[%emt 0:06:00]} 16. Rab1 {[%emt 0:10:48]} Na5 {[%emt 0:06:08]} 17. Kh1 {[%emt 0:14:26]} Qe6 {[%emt 0:12:33]} 18. c5 {[%emt 0:01:26]} Qc4 {[%emt 0:09:31]} 19. Qe1 {[%emt 0:00:34]} Qxe4 {[%emt 0:03:29]} 20. Qxe4 {[%emt 0:00:08]} Nxe4 {[%emt 0:00:05]} 21. Bxd8 {[%emt 0:00:08]} Rxd8 {[%emt 0:00:06]} 22. cxb6 {[%emt 0:00:25]} cxb6 {[%emt 0:00:23]} 23. Nxe5 {[%emt 0:03:47]} f6 {[%emt 0:00:40]} 24. Nf3 {[%emt 0:01:07]} 1/2-1/2